Cogmind - Beta 15 @@@ ROGUE MODE // 2025.05.15 @ 02:22:29 Player: Darcyisverycute Result: Destroyed by SKR-2 with Enhanced Force Lance Performance ------------- Evolutions (8) 4000 Regions Visited (17) 3400 Robots Destroyed (224) 1120 Value Destroyed (11070) 11070 Prototype IDs (55) 1100 Alien Tech Used (3) 600 Bonus (9717) 9717 TOTAL SCORE: 31007 Bonus ------- High Alert Combat Kills 2778 Follower Combat Kills 3185 Network Hubs Disabled 400 Delivered SUBCON Basin 2000 Registered with UFD 300 Met Optimus in HQ 500 Built Enhanced Grunts 300 Met R17 at Cetus 500 Met R17 at Research 2000 Friendly Fire -2246 Cogmind --------- Core Integrity 0/1450 Matter 225/300 Energy 24/100 System Corruption 12% Temperature Cool (0) Movement Core (50) Location -2/Protoforge Parts ------- > --- POWER (2) -------- (None) > --- PROPULSION (8) --- (None) > --- UTILITY (10) ----- (None) > --- WEAPON (3) ------- (None) > --- INVENTORY (5) ---- Light Antimatter Reactor Particle Reactor Advanced Heat Sink Transdimensional Reconstructor Enhanced Nova Cannon Peak State ------------ > --- POWER ------------ Micro Antimatter Reactor Compact Particle Reactor > --- PROPULSION ------- Armored Heavy Treads Advanced Heavy Treads Improved Heavy Siege Treads Combat Antigrav System Combat Antigrav System > --- UTILITY ---------- Coolant Network High-capacity Storage Unit Advanced Sensor Array Advanced Signal Interpreter Experimental Terrain Scan Processor Experimental Targeting Computer Quantum Capacitor Advanced Transmission Jammer > --- WEAPON ----------- Improved Matter Neutralizer Omega Cannon > --- INVENTORY -------- Light Quantum Reactor Improved Antigrav System Improved Antigrav System Improved Antigrav System Combat Antigrav System Combat Antigrav System Combat Antigrav System Coolant Network Energy Well Precision Matter Filter Precision Energy Filter Centrium Medium Armor Plating Graphene Brace Experimental EM Shield Experimental Hacking Suite Compact HERF Cannon Smartbomb Launcher Fusion Bomb Launcher [Rating: 195] Favorites ----------- Power Ion Engine Engine Ion Engine Power Core Micro Fission Core Reactor Quantum Reactor Propulsion Light Treads Treads Light Treads Leg Thunder Leg Wheel Wheel Hover Unit Combat Antigrav System Flight Unit Xenon Bombardment Thruster Utility Large Storage Unit Device Power Bank Storage Large Storage Unit Processor Advanced Signal Interpreter Hackware Hacking Suite Protection Centrium Medium Armor Plating Artifact Phase Redirector Weapon Cooled Pulse Rifle Energy Gun Cooled Pulse Rifle Energy Cannon Compact Ion Cannon Ballistic Gun Advanced KE Penetrator Ballistic Cannon Omega Cannon Launcher Heavy Proton Missile Launcher Special Weapon Mining Laser Impact Weapon Shock Maul Slashing Weapon Ionic Axe Build | -11 -10 -10 -7 -7 -5 -5 -5 -5 -5 -5 -5 -4 -3 -3 -2 -2 -2 ------- Run | Yrd Mat Sub Rec Scr Fac Was Fac Ext Cet Arc Hub Fac Res Tes Res Qua Frg Slots Evolved 16 | . . . . . 10 . . . . . . 2 2 . 2 . . Power 1 | . . . . . . . . . . . . 1 . . . . . Propulsion 6 | . . . . . 4 . . . . . . . . . 2 . . Utility 8 | . . . . . 5 . . . . . . 1 2 . . . . Weapon 1 | . . . . . 1 . . . . . . . . . . . . Parts Attached 228 | 7 2 4 2 4 45 5 11 11 14 2 9 11 25 23 15 24 14 Power 19 | 1 . . . . 6 . 1 . 2 . . . 1 3 . 3 2 Engine 7 | 1 . . . . 3 . 1 . 1 . . . . . . 1 . Core 3 | . . . . . 3 . . . . . . . . . . . . Reactor 9 | . . . . . . . . . 1 . . . 1 3 . 2 2 Propulsion 72 | 2 . . 1 . 19 3 1 3 3 . . 2 7 3 12 9 7 Treads 27 | 2 . . 1 . 3 3 . 3 3 . . 2 4 3 . . 3 Leg 6 | . . . . . 3 . . . . . . . 2 . . 1 . Wheel 6 | . . . . . 2 . . . . . . . . . . 4 . Hover 28 | . . . . . 11 . 1 . . . . . 1 . 11 4 . Flight 5 | . . . . . . . . . . . . . . . 1 . 4 Utility 86 | 2 1 1 . 1 14 1 5 2 6 1 5 8 14 10 3 9 3 Device 50 | 1 . 1 . . 12 . 3 2 1 1 3 2 7 8 1 5 3 Storage 6 | 1 1 . . 1 . . . . . . . . 1 . 1 1 . Processor 10 | . . . . . 2 . . . . . . 4 3 1 . . . Hackware 7 | . . . . . . . 2 . . . 2 . . 1 1 1 . Protection 11 | . . . . . . 1 . . 5 . . 2 3 . . . . Artifact 2 | . . . . . . . . . . . . . . . . 2 . Weapon 51 | 2 1 3 1 3 6 1 4 6 3 1 4 1 3 7 . 3 2 Energy Gun 14 | 1 . . . 2 4 . 1 . 1 1 1 . . 2 . . 1 Energy Cannon 14 | . . 1 . . 2 . 1 1 . . 1 1 2 3 . 2 . Ballistic Gun 7 | 1 . 1 1 . . . . . 2 . . . . 1 . . 1 Ballistic Cannon 5 | . . . . . . . . 4 . . . . . 1 . . . Launcher 4 | . . 1 . . . . . . . . 1 . 1 . . 1 . Special Weapon 4 | . 1 . . . . 1 . 1 . . 1 . . . . . . Impact Weapon 1 | . . . . . . . 1 . . . . . . . . . . Slashing Weapon 2 | . . . . 1 . . 1 . . . . . . . . . . Piercing Weapon . | . . . . . . . . . . . . . . . . . . Special Melee Weapon . | . . . . . . . . . . . . . . . . . . Unidentified Prototypes 46 | . . . . . 7 . 4 . 4 . 3 2 5 16 1 3 1 Corrupted Parts 1 | . . . . . . . . . 1 . . . . . . . . System Corruption 10 | . . . . . . . . . 10 . . . . . . . . Parts Lost 71 | . . . 1 . 14 . 1 8 2 . . 5 2 1 15 13 9 Power 9 | . . . . . 3 . . 2 . . . . . 1 1 1 1 Propulsion 32 | . . . 1 . 9 . . . 2 . . . . . 7 7 6 Utility 19 | . . . . . 1 . 1 2 . . . 4 . . 6 3 2 Weapon 11 | . . . . . 1 . . 4 . . . 1 2 . 1 2 . Highest Loss Streak 15 | . . . 1 . 6 . 1 5 1 . . 2 1 1 15 8 4 To Critical Strikes 2 | . . . . . . . . 1 1 . . . . . . . . Average Backups 12 | 3 7 5 4 13 14 14 11 11 10 12 14 12 17 17 16 14 3 Power . | . 1 . . . . 1 1 2 1 1 1 . . . 1 1 . Propulsion 2 | 1 2 . 2 3 . . . 2 3 2 2 5 7 7 3 1 . Utility 5 | . 2 1 1 8 8 9 6 4 4 6 7 4 8 8 8 6 . Weapon 1 | 1 2 2 . . . . . . . 1 2 1 1 1 3 2 1 Tool/Special . | . . . . . . . . . . . . . . . . . . Unused Backups 68 | . . 12 . 11 11 3 3 1 1 4 3 3 6 2 . 6 2 Power 6 | . . 1 . . 1 . . . . 1 . 1 1 . . 1 . Propulsion 18 | . . 2 . 6 . . . . 1 2 2 1 3 1 . . . Utility 31 | . . 4 . 5 8 3 3 . . 1 1 1 2 1 . 2 . Weapon 7 | . . 5 . . . . . . . . . . . . . 1 1 Tool/Special 6 | . . . . . 2 . . 1 . . . . . . . 2 1 Average Slot Usage (%) 77 | . 100 95 69 64 83 91 82 85 74 73 63 79 78 73 77 66 70 Engine 5 | . 14 13 10 10 6 . . . 3 . . 5 4 . . 1 . Core 1 | . . . . . 4 11 11 7 . . . . . . . . . Reactor 2 | . . . . . . . . . 1 5 5 5 4 8 7 3 5 Treads 16 | . 28 26 19 20 8 3 15 20 17 17 17 15 18 15 4 . 7 Hover 3 | . . . . . 12 25 . . . . . . . . 22 17 3 Device 13 | . 14 13 10 10 18 15 15 16 9 11 9 7 10 17 14 15 25 Storage 6 | . 14 13 10 10 5 5 5 5 5 5 5 5 4 4 4 3 . Processor 6 | . . . . . 6 11 8 5 5 4 . 15 14 15 12 8 8 Hackware 1 | . . . . . . . 5 11 . . 1 . . . 2 1 1 Protection 2 | . . . . . . 1 2 . 13 8 5 11 5 . . . . Energy Gun 5 | . 12 2 . 6 12 11 10 1 7 9 9 2 3 1 . . 1 Energy Cannon 3 | . . 10 . . 2 5 3 . . . 1 3 4 7 3 5 3 Ballistic Gun 5 | . 14 13 20 7 . . . . 5 6 5 1 1 . . . . Peak Build Rating 195 | 7 7 34 37 31 117 109 109 107 139 140 141 162 165 183 195 160 135 Average Rating 91 | 5 7 12 28 25 91 108 106 99 116 130 132 154 151 173 176 111 114 On Entrance 85 | . 7 7 34 24 31 109 108 107 68 139 132 141 136 161 179 64 98 Naked Turns 7 | . . . . . . . . . . . . . . . . . 7 Heaviest Build 118 | 14 29 42 36 38 71 64 67 69 94 105 109 109 118 109 104 104 57 Greatest Support 240 | 40 40 40 40 40 83 210 210 210 240 240 240 240 214 210 205 88 60 Greatest Overweight (x) 5 | . . 1 1 . 5 . . . . . . . . . 1 2 1 Average Overweight (x) . | . . . . . . . . . . . . . . . . . . Largest Inventory Capacity 20 | 8 15 15 15 15 15 15 15 15 15 15 15 15 20 20 20 20 5 Average Capacity 15 | 7 14 15 15 15 15 15 15 15 15 15 15 15 19 20 20 18 5 Most Carried 20 | 5 8 15 15 15 15 15 15 15 15 15 15 15 20 20 20 20 5 Average Carried 14 | 3 7 9 11 14 14 14 14 14 13 14 14 13 18 19 19 17 4 Final Capacity 20 | 8 15 15 15 15 15 15 15 15 15 15 15 15 20 20 20 5 5 Final Carried 20 | 5 8 15 15 15 15 15 15 15 15 15 15 15 20 20 19 5 5 Class Distribution -------------------- 37% | Mutant 19% | Scavenger-Tank 15% | Scavenger-Gunner 8% | Gunner 7% | Scavenger-Mutant Dominant Class ---------------- Mutant | -10/Materials Mutant | -10/Subcaves Mutant | -7/Recycling Mutant | -7/Scraptown Scavenger-Gunner | -5/Factory Scavenger-Gunner | -5/Waste Scavenger-Tank | -5/Factory Scavenger-Mutant | -5/Extension Scavenger-Tank | -5/Cetus Scavenger-Tank | -5/Archives Scavenger-Tank | -5/Hub_04(d) Scavenger-Tank | -4/Factory Scavenger-Gunner | -3/Research Gunner | -3/Testing Skirmisher | -2/Research Mutant | -2/Quarantine Scavenger-Mutant | -2/Protoforge Resources | -11 -10 -10 -7 -7 -5 -5 -5 -5 -5 -5 -5 -4 -3 -3 -2 -2 -2 ----------- Run | Yrd Mat Sub Rec Scr Fac Was Fac Ext Cet Arc Hub Fac Res Tes Res Qua Frg Matter Collected 7102 | 286 143 216 235 61 806 . 341 643 229 395 248 1171 863 563 11 561 330 Remotely . | . . . . . . . . . . . . . . . . . . Salvage Created 12617 | 127 143 169 267 343 1648 1611 321 453 340 478 291 1977 2051 1276 . 722 400 Parts 437 | 11 6 10 9 9 63 32 5 18 12 22 7 78 55 47 . 36 17 Haulers Intercepted 5 | . . . . . 1 . 1 . . . . 1 1 1 . . . Recyclers Shooed 12 | 1 1 . . . 3 . . . . . . 3 1 1 . 2 . Parts Field Recycled . | . . . . . . . . . . . . . . . . . . Retrieved Matter . | . . . . . . . . . . . . . . . . . . Parts Self-Destructed 17 | . . 9 . 8 . . . . . . . . . . . . . Prevented . | . . . . . . . . . . . . . . . . . . Kills | -11 -10 -10 -7 -7 -5 -5 -5 -5 -5 -5 -5 -4 -3 -3 -2 -2 -2 ------- Run | Yrd Mat Sub Rec Scr Fac Was Fac Ext Cet Arc Hub Fac Res Tes Res Qua Frg Combat Hostiles Destroyed 151 | . 1 6 2 . 24 6 6 7 4 2 4 27 29 15 . 12 6 Melee 1 | . . . . . . . . 1 . . . . . . . . . Guns 38 | . 1 . 2 . 12 4 5 . 4 2 3 4 1 . . . . Cannons 49 | . . 2 . . 7 2 1 5 . . . 3 11 9 . 3 6 AOE 35 | . . 4 . . 1 . . . . . . 12 8 2 . 8 . Classes Destroyed 24 | 3 2 3 1 . 4 1 1 2 . . . 3 3 . . 1 . Worker 21 | 1 . . . . 7 . 2 . . . 1 2 . 3 . 5 . Builder 16 | . 1 . 1 . 2 . . . . . . 3 2 2 . 5 . Tunneler 4 | 3 . . . . 1 . . . . . . . . . . . . Hauler 5 | . . . . . 1 . 1 . . . . 1 1 1 . . . Recycler 11 | 1 1 . 2 . 2 . . . . . . 1 . 1 . 3 . Mechanic 1 | . . . . . . . . 1 . . . . . . . . . Operator 11 | . . . . . . . . 1 . 9 . . 1 . . . . Drone 1 | . . . . . . . . . . . . . . . . 1 . Watcher 3 | . . . . . 1 . . . 1 . . . . 1 . . . Swarmer 29 | . . 4 . . 9 . 3 . . . . 5 . . . 5 3 Grunt 39 | . 1 . . . 10 . 1 3 . . 1 2 13 7 . 1 . Brawler 2 | . . . . . 1 . . 1 . . . . . . . . . Duelist 1 | . . . . . . . . . . . . 1 . . . . . Sentry 12 | . . . 2 . . . . 1 . 2 2 1 1 . . . 3 Demolisher 4 | . . . . . . . . . . . . . 4 . . . . Specialist 1 | . . . . . . . . . . . . 1 . . . . . Hunter 21 | . . . . . . . 1 2 . . . 12 6 . . . . Programmer 20 | . . . . . 4 . 1 . . . . 3 . 7 . 5 . Heavy 2 | . . . . . . . . . . . . 2 . . . . . Behemoth 1 | . . . . . . . . . . . . . 1 . . . . Compactor 6 | . . . . . . 6 . . . . . . . . . . . Cetus Guard 4 | . . . . . . . . . 4 . . . . . . . . Lightning 1 | . . . . . . . . . . . 1 . . . . . . Striker 4 | . . . . . . . . . . . . . 4 . . . . Protovariant H 1 | . . . . . . . . . . . . . . 1 . . . Cobbler 1 | . . 1 . . . . . . . . . . . . . . . Subdweller 2 | . . 2 . . . . . . . . . . . . . . . Wasp 1 | . . . . . . . 1 . . . . . . . . . . Best Kill Streak 12 | 2 2 4 2 . 12 2 2 3 3 5 2 9 11 4 . 7 2 Combat Bots Only 9 | . 1 4 1 . 5 2 2 3 2 1 2 6 9 3 . 5 2 Max Kills in Single Turn 4 | 1 1 4 1 . 2 1 1 1 1 1 1 3 3 2 . 4 1 Gunslinging . | . . . . . . . . . . . . . . . . . . Exploded 4 | . . 4 . . 1 . . . . . . 3 3 1 . 2 . Melee 1 | . . . . . . . . 1 . . . . . . . . . Uniques/NPCs Destroyed 1 | . . . . . . . . . 1 . . . . . . . . A7 (-5/Cetus) Combat | -11 -10 -10 -7 -7 -5 -5 -5 -5 -5 -5 -5 -4 -3 -3 -2 -2 -2 -------- Run | Yrd Mat Sub Rec Scr Fac Was Fac Ext Cet Arc Hub Fac Res Tes Res Qua Frg Hostile Shots Fired 1449 | . 1 25 54 . 195 1 47 114 63 2 78 201 107 95 254 154 58 Missed 500 | . . 9 22 . 58 1 9 23 16 . 17 96 32 26 107 68 16 Hits 949 | . 1 16 32 . 137 . 38 91 47 2 61 105 75 69 147 86 42 Melee 8 | . . . . . . . . 2 . . . . 3 . 2 . 1 Projectile 941 | . 1 16 32 . 137 . 38 89 47 2 61 105 72 69 145 86 41 AOE 9 | . . . . . 1 . . . . . . . 8 . . . . Critical Strikes 59 | . . . . . 11 . . 6 8 . 2 8 2 5 9 5 3 Actively Blocked 7 | . . . . . . . . . . . . . . . . 5 2 Part Disruptions 6 | . . . . . 1 . . 2 . . . 2 . 1 . . . Damage Taken 22355 | . 10 310 252 . 2675 . 776 1659 1156 51 1198 2907 2449 1354 3851 2209 1498 Core 2881 | . 10 109 18 . 325 . 92 180 55 . 291 81 115 101 803 250 451 Absorbed by Shields 745 | . . . . . . . 66 537 142 . . . . . . . . Reduced by Siege Mode 226 | . . . . . . . . 4 44 . 18 7 87 66 . . . Redirected to Core 60 | . . . . . . . . . . . . . . . . 60 . Ignored by Resistances 1310 | . . . . . . . . . . . 825 138 . 347 . . . Regen/Repaired (Parts) 122 | . . . . . 20 11 73 18 . . . . . . . . . Core Remaining (%) 65 | 100 . . . 45 . . . . . . 5 92 . 83 . . . Volleys Fired 946 | 16 13 29 12 3 114 85 32 40 29 50 31 63 148 133 21 57 70 Largest 3 | 2 2 2 2 2 3 3 3 3 3 3 3 3 2 1 1 1 1 Hottest 300 | 70 100 100 58 58 300 130 191 140 150 209 209 240 240 113 113 113 120 Shots Fired 1576 | 32 21 50 24 6 244 233 65 87 60 125 82 94 169 134 21 59 70 Gun 866 | 32 16 27 24 6 190 148 48 3 59 125 75 34 38 41 . . . Cannon 648 | . . 20 . . 54 84 17 83 . . 5 26 125 93 21 50 70 Launcher 51 | . . 2 . . . . . . . . . 34 6 . . 9 . Special 11 | . 5 1 . . . 1 . 1 1 . 2 . . . . . . Kinetic 297 | 16 8 23 24 6 . . . 62 24 54 28 16 18 16 2 . . Thermal 1142 | 16 13 27 . . 244 232 65 24 35 71 52 18 117 90 19 49 70 Explosive 12 | . . . . . . . . . . . . . 3 . . 9 . Electromagnetic 120 | . . . . . . . . . . . . 60 31 28 . 1 . Robot Hit Streak 37 | 5 8 14 21 9 13 22 7 14 13 10 5 23 18 37 1 8 8 Robot Miss Streak 9 | 1 1 6 1 1 5 4 6 9 8 6 4 2 3 3 1 2 3 Penetration Max 1 | . . . . . . . . 1 1 1 1 1 . . . . . Secondary Targets 4 | . . . . . 1 . . . . 1 1 1 . . . . . Max Gunslinging Chain 1 | . . . . . 1 . . . . 1 1 1 . . . . . Capacitor 301 | . . . . . . . . . . . . . 121 105 4 13 58 Shots Hit Robots 960 | 18 14 28 19 8 143 169 26 45 47 58 43 72 112 96 1 29 32 Core Hits 397 | 8 5 12 15 8 56 25 11 19 15 24 14 50 61 28 . 37 9 Critical Kills 15 | . . . . . . . . 5 . 2 . 1 3 2 . 2 . Critical Parts Destroyed 19 | . . . . . . . . 4 2 4 3 3 3 . . . . Critical Strikes 80 | . . 1 . . 22 5 . 14 3 6 4 12 7 4 . 2 . Burn 28 | . . 1 . . 22 5 . . . . . . . . . . . Meltdown 8 | . . . . . . . . 1 . . . . 3 2 . 2 . Destroy 27 | . . . . . . . . 7 3 6 4 4 3 . . . . Blast 5 | . . . . . . . . 4 . . . . . 1 . . . Corrupt 10 | . . . . . . . . . . . . 8 1 1 . . . Smash 1 | . . . . . . . . 1 . . . . . . . . . Sever 1 | . . . . . . . . 1 . . . . . . . . . Melee Attacks 16 | . . . . 4 . . 1 11 . . . . . . . . . Impact 3 | . . . . . . . . 3 . . . . . . . . . Slashing 13 | . . . . 4 . . 1 8 . . . . . . . . . Piercing . | . . . . . . . . . . . . . . . . . . Sneak Attacks 1 | . . . . . . . . 1 . . . . . . . . . Combat Hostiles . | . . . . . . . . . . . . . . . . . . Follow-up Attacks 2 | . . . . . . . . 2 . . . . . . . . . Damage Inflicted 36612 | 196 142 650 335 426 4224 4100 737 1943 1363 1733 1321 4685 5214 5135 70 2836 1502 Guns 13874 | 196 142 160 335 70 3182 2344 534 74 1363 1733 1193 873 509 1166 . . . Cannons 15002 | . . 281 . . 695 1756 203 1390 . . 124 1225 3172 3575 65 1014 1502 Explosions 6799 | . . 209 . . 310 . . . . . . 2569 1533 394 . 1784 . Melee 753 | . . . . 356 . . . 397 . . . . . . . . . Ramming 184 | . . . . . 37 . . 82 . . 4 18 . . 5 38 . Kinetic 6038 | 109 43 308 335 70 . . . 857 608 854 480 442 213 1654 65 . . Thermal 21501 | 87 99 342 . . 4187 4100 737 607 755 879 837 751 3179 2471 . 968 1502 Explosive 3240 | . . . . . . . . . . . . 685 771 . . 1784 . Electromagnetic 4896 | . . . . . . . . . . . . 2789 1051 1010 . 46 . Impact 154 | . . . . . . . . 154 . . . . . . . . . Slashing 599 | . . . . 356 . . . 243 . . . . . . . . . Piercing . | . . . . . . . . . . . . . . . . . . Highest Corruption 19 | . . . . . 14 14 14 10 19 19 15 2 . 9 2 11 12 Average Corruption 8 | . . . . . 6 14 10 6 12 16 13 1 . 6 1 3 11 Corruption Purged 16 | . . . . . . . 5 5 . 6 . . . . . . . Corruption Blocked . | . . . . . . . . . . . . . . . . . . Effects 262 | . . . . . 29 37 25 30 17 39 24 7 . 18 . 15 21 Message Errors 56 | . . . . . 4 8 7 6 3 8 3 2 . 8 . 4 3 Matter Fused 59 | . . . . . 9 7 8 6 3 10 7 . . 1 . 1 7 Heat Flow Errors 28 | . . . . . 5 4 1 2 3 5 2 . . 3 . 2 1 Energy Discharges 26 | . . . . . 7 1 3 3 2 3 2 . . 3 . 2 . Parts Rejected 4 | . . . . . . 2 . 1 . 1 . . . . . . . Parts Fused 3 | . . . . . 1 1 . . . . . . . 1 . . . Data Loss (minor) 35 | . . . . . 3 5 2 4 1 6 2 4 . 1 . 4 3 Data Loss (major) 8 | . . . . . . 1 3 1 . . 1 . . . . . 2 Misfires 15 | . . . . . . 1 1 3 . 3 1 1 . 1 . 2 2 Alerts 10 | . . . . . . 1 . 4 3 1 1 . . . . . . Misdirections 2 | . . . . . . 1 . . . . . . . . . . 1 Weapon Failures 16 | . . . . . . 5 . . 2 2 5 . . . . . 2 Overload Shots 17 | . . . . . 3 . 6 2 3 . . 1 2 . . . . Effects 1 | . . . . . . . . . 1 . . . . . . . . Energy Bleed 1 | . . . . . . . . . 1 . . . . . . . . Overflow Damage 1178 | . . 58 . 37 51 . . 79 . . 17 129 91 529 . 144 43 Projectiles 743 | . . 24 . . 13 . . 11 . . 17 22 54 496 . 63 43 Explosions 330 | . . 34 . . 38 . . . . . . 107 37 33 . 81 . Melee 105 | . . . . 37 . . . 68 . . . . . . . . . Knockbacks 13 | . . . . . . . . 3 . . . . . 9 . 1 . Impact 1 | . . . . . . . . . . . . . . . . 1 . Kinetic 11 | . . . . . . . . 3 . . . . . 8 . . . Secondary 1 | . . . . . . . . . . . . . . 1 . . . Self-Inflicted Damage 336 | . . 25 . . . . . . . . . 87 99 83 2 40 . Shots 6 | . . 1 . . . . . . . . . 2 1 1 . 1 . Rammed 27 | . . . . . 9 . . 12 . . 2 1 . . 1 2 . Targets Rammed 28 | . . . . . 9 . . 13 . . 2 1 . . 1 2 . Kicked . | . . . . . . . . . . . . . . . . . . Crushed 1 | . . . . . . . . 1 . . . . . . . . . Highest Temperature 600 | 120 70 40 46 . 342 268 230 273 193 226 600 336 342 141 413 200 192 Average Temperature 89 | 43 26 16 17 . 105 37 92 99 91 62 189 107 54 27 124 77 70 Received Heat Transfer 2296 | . 6 24 78 . 867 . . 362 160 9 237 21 96 139 144 63 90 Effects 13 | . . . . . 3 . . . . . 6 4 . . . . . Interference 7 | . . . . . 2 . . . . . 1 4 . . . . . Matter Decay 2 | . . . . . . . . . . . 2 . . . . . . Damage (minor) 2 | . . . . . 1 . . . . . 1 . . . . . . Damage (core) 2 | . . . . . . . . . . . 2 . . . . . . Siege Activations 25 | . . . . . . . . 2 3 1 2 5 9 2 . . 1 Total Turns 293 | . . . . . . . . 30 65 4 45 40 80 26 . . 3 Longest Duration 37 | . . . . . . . . 21 27 4 37 13 28 15 . . 3 Martial Activations . | . . . . . . . . . . . . . . . . . . Shielding Activations . | . . . . . . . . . . . . . . . . . . Robots Disrupted 3 | . . . . . . . . . . . . 1 . 2 . . . Combat Hostiles 3 | . . . . . . . . . . . . 1 . 2 . . . Robots Corrupted 19 | . . . . . . . . . . . . 8 6 5 . . . Combat Hostiles 17 | . . . . . . . . . . . . 8 6 3 . . . Parts Fried 49 | . . . . . . . . 1 . . . 24 12 12 . . . Impact Corruptions 1 | . . . . . . . . 1 . . . . . . . . . Robots Melted 14 | . . . . . 5 . . 1 . . 1 . 3 2 . 2 . Combat Hostiles 11 | . . . . . 4 . . 1 . . 1 . 3 1 . 1 . Parts Melted 40 | . . 1 . . 18 . 1 1 1 4 1 4 3 3 . 3 . Heat Transferred 31070 | 259 296 629 . . 8856 7326 1184 900 1131 1110 870 781 3136 2520 . 851 1221 Parts Sabotaged . | . . . . . . . . . . . . . . . . . . Parts Stolen . | . . . . . . . . . . . . . . . . . . Parts Stripped . | . . . . . . . . . . . . . . . . . . Power Chain Reactions 11 | . . . . . . . . . . . . 5 3 3 . . . Alert | -11 -10 -10 -7 -7 -5 -5 -5 -5 -5 -5 -5 -4 -3 -3 -2 -2 -2 ------- Run | Yrd Mat Sub Rec Scr Fac Was Fac Ext Cet Arc Hub Fac Res Tes Res Qua Frg Maximum Alert Level 4 | . . . . . 2 . 4 4 3 2 4 4 3 2 1 2 . Low Security (%) 40 | 100 100 . 100 . 63 100 22 . . . 36 . . . 69 88 100 Level 1 15 | . . . . . 35 . 17 . . 46 21 . . 48 30 7 . Level 2 15 | . . . . . 1 . 22 30 . 53 3 27 9 51 . 4 . Level 3 24 | . . . . . . . 22 53 100 . 29 44 90 . . . . Level 4 4 | . . . . . . . 15 15 . . 8 27 . . . . . Level 5 . | . . . . . . . . . . . . . . . . . . High Security . | . . . . . . . . . . . . . . . . . . Max Security . | . . . . . . . . . . . . . . . . . . Peak Influence 1407 | 10 20 . 61 . 404 148 1138 1407 890 506 1148 1346 1084 601 243 462 105 Initial 787 | . . . 4 . . 140 . 524 787 328 91 553 693 601 243 57 69 Average 417 | . 2 . 7 . 135 31 573 851 831 402 514 890 898 416 124 100 58 Influence Increases 10771 | 25 30 245 190 30 928 26 1529 1435 253 330 1305 1203 980 623 377 934 328 Destroy 0b10 Robot/C 4220 | . 20 80 40 . 480 . 560 640 160 80 400 540 580 300 . 220 120 Destroy 0b10 Robot/NC 440 | 25 10 . 15 30 70 . 25 10 10 45 30 35 20 45 . 70 . Destroy Leader 770 | . . . . . 74 . 106 90 . . 102 142 122 54 . 40 40 Allied During Kill 1457 | . . . . . . . 509 362 49 105 432 . . . . . . Successful Hack 174 | . . . 14 . . . 26 20 . . 5 . . 19 20 70 . Select Force Hacks 220 | . . . 120 . . . . . . . 100 . . . . . . Disable Machine 750 | . . . . . 75 . 45 45 . 60 120 150 60 105 . 75 15 Anti-Garrison Action 300 | . . . . . . . 150 . . . . 150 . . . . . Destroy Structure 1420 | . . . 1 . 124 26 78 208 34 40 116 186 138 70 57 249 93 Partial Spotted 45 | . . . . . 15 . . . . . . . . . . . 30 Lose Combat Pursuer 975 | . . 165 . . 90 . 30 60 . . . . 60 30 300 210 30 Influence Decreases 10714 | 25 30 236 199 30 527 427 458 1099 838 892 435 1013 1230 1261 706 913 395 Entered New Map 4059 | . . . 5 . . 261 . 547 620 494 169 577 627 469 189 46 55 Time Decay 4631 | 25 30 236 189 30 308 166 308 392 198 398 206 386 583 482 173 323 198 Lost Part 660 | . . . 5 . 135 . 10 80 20 . . 50 20 10 150 94 86 Lost Ally 290 | . . . . . . . 140 80 . . 60 . . . 10 . . Purge Threat 1074 | . . . . . 84 . . . . . . . . 300 184 450 56 Squads Dispatched 73 | . . . . . 8 . 9 8 . . 7 14 10 5 4 6 2 Investigation 21 | . . . . . 3 . 2 1 . . 4 3 3 1 3 . 1 Extermination 13 | . . . . . 3 . 2 . . . . 1 . 3 1 2 1 Reinforcement 26 | . . . . . 2 . 2 3 . . 3 4 7 1 . 4 . Assault 12 | . . . . . . . 2 4 . . . 6 . . . . . Garrison 1 | . . . . . . . 1 . . . . . . . . . . Intercept . | . . . . . . . . . . . . . . . . . . Searches Triggered . | . . . . . . . . . . . . . . . . . . Construction Impeded 9 | . . . . . 1 . 1 2 . . . 1 1 . . 3 . Haulers Reinforced 3 | . . . . . . . 1 . . . . . 1 1 . . . Active Scanning Responses . | . . . . . . . . . . . . . . . . . . Cargo Convoy Interrupts 2 | . . . . . . . . . . . . 1 . . 1 . . Stealth | -11 -10 -10 -7 -7 -5 -5 -5 -5 -5 -5 -5 -4 -3 -3 -2 -2 -2 --------- Run | Yrd Mat Sub Rec Scr Fac Was Fac Ext Cet Arc Hub Fac Res Tes Res Qua Frg Distress Signals 17 | . . . . . . . . 1 2 . 1 . 7 . 1 4 1 Communications Jammed 8 | . . . . . . . . . . . . . . 8 . . . Distress Signals 8 | . . . . . . . . . . . . . . 8 . . . Times Spotted 377 | . 1 15 2 . 37 6 25 52 11 27 20 27 44 28 49 20 13 Peak Tracking Total 37 | . . 6 1 . 7 3 5 21 5 1 7 6 6 4 37 9 6 Tactical Retreats 29 | . . 5 . . 5 . 1 3 . . . . 2 2 5 5 1 Traps | -11 -10 -10 -7 -7 -5 -5 -5 -5 -5 -5 -5 -4 -3 -3 -2 -2 -2 ------- Run | Yrd Mat Sub Rec Scr Fac Was Fac Ext Cet Arc Hub Fac Res Tes Res Qua Frg Traps Triggered 12 | . . 2 . . 3 . 1 2 . . . 1 1 1 . . 1 Indirectly 1 | . . . . . . . . . . . . . 1 . . . . Trap Hack Attempts . | . . . . . . . . . . . . . . . . . . Triggered . | . . . . . . . . . . . . . . . . . . Disarmed . | . . . . . . . . . . . . . . . . . . Reprogrammed . | . . . . . . . . . . . . . . . . . . Reused . | . . . . . . . . . . . . . . . . . . Traps Extracted . | . . . . . . . . . . . . . . . . . . Installed . | . . . . . . . . . . . . . . . . . . Triggered . | . . . . . . . . . . . . . . . . . . Most Traps Carried 2 | . . 2 . . . . . . . . . . . . . . . Machines | -11 -10 -10 -7 -7 -5 -5 -5 -5 -5 -5 -5 -4 -3 -3 -2 -2 -2 ---------- Run | Yrd Mat Sub Rec Scr Fac Was Fac Ext Cet Arc Hub Fac Res Tes Res Qua Frg Machines Disabled 54 | . . 1 . . 5 . 4 3 . 4 8 11 4 8 . 5 1 Max in Single Turn 4 | . . 1 . . 4 . 1 . . 1 1 4 1 1 . 1 1 Garrison Access 6 | . . . . . . . 1 . . . . 2 2 . 1 . . Network Hub 2 | . . . . . . . . . . . 2 . . . . . . Machines Repaired . | . . . . . . . . . . . . . . . . . . Machines Dismantled . | . . . . . . . . . . . . . . . . . . Machines Sabotaged 2 | . . . . . . . . . . . 2 . . . . . . Overloaded Fab Kills . | . . . . . . . . . . . . . . . . . . Hacking | -11 -10 -10 -7 -7 -5 -5 -5 -5 -5 -5 -5 -4 -3 -3 -2 -2 -2 --------- Run | Yrd Mat Sub Rec Scr Fac Was Fac Ext Cet Arc Hub Fac Res Tes Res Qua Frg Machines Accessed 64 | . . 3 8 2 7 . 5 10 . . 5 3 2 3 6 7 3 Terminals 37 | . . . 3 . 3 . 4 10 . . 5 . . 3 2 6 1 Fabricators . | . . . . . . . . . . . . . . . . . . Repair Stations . | . . . . . . . . . . . . . . . . . . Recycling Units 14 | . . . 5 . 2 . . . . . . 2 1 . 3 . 1 Scanalyzers 2 | . . . . . 1 . . . . . . . . . . . 1 Garrison Access 6 | . . . . . 1 . 1 . . . . 1 1 . 1 1 . Total Hacks 205 | . . 3 16 12 13 . 13 24 . . 14 7 4 24 14 41 20 Successful 89 | . . 3 6 12 4 . 3 7 . . 11 2 2 10 10 14 5 Failed 116 | . . . 10 . 9 . 10 17 . . 3 5 2 14 4 27 15 Catastrophic 29 | . . . 4 . 1 . 2 2 . . . 2 1 2 . 10 5 Database Lockouts . | . . . . . . . . . . . . . . . . . . Manual 77 | . . . 15 . 3 . 4 4 1 . 13 3 2 14 7 10 1 Terminals 143 | . . . 6 . 6 . 10 24 . . 14 . . 24 9 40 10 Fabricators . | . . . . . . . . . . . . . . . . . . Repair Stations . | . . . . . . . . . . . . . . . . . . Recycling Units 23 | . . . 10 . 3 . . . . . . 3 2 . 4 . 1 Scanalyzers 10 | . . . . . 1 . . . . . . . . . . . 9 Garrison Access 14 | . . . . . 3 . 3 . . . . 4 2 . 1 1 . Terminal Hacks 60 | . . 3 1 12 2 . 3 7 . . 3 . . 9 4 14 2 Record 8 | . . . . 5 . . . . . . . . . . . 3 . Robot Analysis 7 | . . . . 7 . . . . . . . . . . . . . Open Door 8 | . . 1 . . . . . 7 . . . . . . . . . Branch Access Points 2 | . . . . . . . 1 . . . . . . . 1 . . Emergency Access Points 2 | . . . . . . . 1 . . . . . . . . 1 . Alert Level 5 | . . . . . . . . . . . . . . 2 1 2 . Unreport Threat 9 | . . . . . 1 . . . . . . . . 2 2 3 1 Locate Traps 3 | . . . . . . . . . . . . . . . . 2 1 Maintenance Status 1 | . . . . . . . 1 . . . . . . . . . . Surveillance Status 1 | . . . . . . . . . . . . . . 1 . . . Patrol Status 1 | . . . . . . . . . . . . . . . . 1 . Transport Status 1 | . . . . . . . . . . . . . . 1 . . . Recall Investigation 3 | . . . . . . . . . . . 2 . . . . 1 . Recall Extermination 1 | . . . . . 1 . . . . . . . . . . . . Registered Components 1 | . . . . . . . . . . . . . . 1 . . . Zone Layout 5 | . . . 1 . . . . . . . 1 . . 2 . 1 . Proto ID Catalog 1 | . . 1 . . . . . . . . . . . . . . . Release Object 1 | . . 1 . . . . . . . . . . . . . . . Fabricator Hacks . | . . . . . . . . . . . . . . . . . . Repair Station Hacks . | . . . . . . . . . . . . . . . . . . Recycling Unit Hacks . | . . . . . . . . . . . . . . . . . . Scanalyzer 2 | . . . . . . . . . . . . . . . . . 2 Insert Component 2 | . . . . . . . . . . . . . . . . . 2 Garrison Access Hacks 2 | . . . . . . . . . . . . . 1 . 1 . . Seal Access 2 | . . . . . . . . . . . . . 1 . 1 . . Unauthorized Hacks 25 | . . . 5 . 2 . . . . . 8 2 1 1 5 . 1 Terminals 12 | . . . 1 . . . . . . . 8 . . 1 2 . . Assimilate 1 | . . . . . . . . . . . . . . . 1 . . Botnet 7 | . . . 1 . . . . . . . 4 . . 1 1 . . Sabotage 4 | . . . . . . . . . . . 4 . . . . . . Fabricators . | . . . . . . . . . . . . . . . . . . Repair Stations . | . . . . . . . . . . . . . . . . . . Recycling Units 13 | . . . 4 . 2 . . . . . . 2 1 . 3 . 1 Tunnel 4 | . . . 4 . . . . . . . . . . . . . . Fedlink 9 | . . . . . 2 . . . . . . 2 1 . 3 . 1 Scanalyzers . | . . . . . . . . . . . . . . . . . . Garrison Access . | . . . . . . . . . . . . . . . . . . Data Cores Recovered . | . . . . . . . . . . . . . . . . . . Used . | . . . . . . . . . . . . . . . . . . Hacking Detections 35 | . . . 4 . 4 . 5 6 . . 2 1 . 2 2 7 2 Full Trace Events 7 | . . . 2 . 1 . 2 1 . . . 1 . . . . . Feedback Events . | . . . . . . . . . . . . . . . . . . Feedback Blocked . | . . . . . . . . . . . . . . . . . . Robot Schematics Acquired . | . . . . . . . . . . . . . . . . . . Robots Built . | . . . . . . . . . . . . . . . . . . Authchips . | . . . . . . . . . . . . . . . . . . Time . | . . . . . . . . . . . . . . . . . . Total Robot Build Rating . | . . . . . . . . . . . . . . . . . . Part Schematics Acquired 12 | . . . . . 10 1 1 . . . . . . . . . . Parts Built . | . . . . . . . . . . . . . . . . . . Authchips . | . . . . . . . . . . . . . . . . . . Time . | . . . . . . . . . . . . . . . . . . Total Part Build Rating . | . . . . . . . . . . . . . . . . . . Parts Repaired . | . . . . . . . . . . . . . . . . . . Time . | . . . . . . . . . . . . . . . . . . Parts Recycled . | . . . . . . . . . . . . . . . . . . Recycled Matter . | . . . . . . . . . . . . . . . . . . Retrieved Matter . | . . . . . . . . . . . . . . . . . . Retrieved Components . | . . . . . . . . . . . . . . . . . . Parts Scanalyzed 1 | . . . . . . . . . . . . . . . . . 1 Part Schematics Acquired . | . . . . . . . . . . . . . . . . . . Parts Damaged 1 | . . . . . . . . . . . . . . . . . 1 Bothacking | -11 -10 -10 -7 -7 -5 -5 -5 -5 -5 -5 -5 -4 -3 -3 -2 -2 -2 ------------ Run | Yrd Mat Sub Rec Scr Fac Was Fac Ext Cet Arc Hub Fac Res Tes Res Qua Frg Used RIF Installer . | . . . . . . . . . . . . . . . . . . Robots Hacked . | . . . . . . . . . . . . . . . . . . Non-combat . | . . . . . . . . . . . . . . . . . . Combat . | . . . . . . . . . . . . . . . . . . Robot Hacks Applied . | . . . . . . . . . . . . . . . . . . Relay Couplers Released 6 | . . . . . . . 3 . . . . 3 . . . . . Machine Destruction 6 | . . . . . . . 3 . . . . 3 . . . . . Fabnet Peak Effective % . | . . . . . . . . . . . . . . . . . . Robots Rewired 7 | . . . . . . . . 7 . . . . . . . . . Allies Hacked . | . . . . . . . . . . . . . . . . . . Hacks Repelled . | . . . . . . . . . . . . . . . . . . Allies | -11 -10 -10 -7 -7 -5 -5 -5 -5 -5 -5 -5 -4 -3 -3 -2 -2 -2 -------- Run | Yrd Mat Sub Rec Scr Fac Was Fac Ext Cet Arc Hub Fac Res Tes Res Qua Frg Total Allies 40 | . . . . . . 19 . 15 5 . . . . . 1 . . Largest Group 19 | . . . . . . 19 19 13 6 5 5 . . . 1 . . Highest-Rated Group 702 | . . . . . . 702 702 488 633 480 480 . . . 26 . . Highest-Rated Ally 159 | . . . . . . 50 50 159 153 96 96 . . . 26 . . Total Orders 2 | . . . . . . . . . . 2 . . . . . . . STAY 1 | . . . . . . . . . . 1 . . . . . . . FOLLOW 1 | . . . . . . . . . . 1 . . . . . . . Ally Attacks 379 | . . . . . . . 128 103 24 21 103 . . . . . . Total Damage 14039 | . . . . . . . 4889 3612 1073 781 3684 . . . . . . Kills 83 | . . . . . . . 27 26 5 2 23 . . . . . . Allies Corrupted . | . . . . . . . . . . . . . . . . . . Allies Melted . | . . . . . . . . . . . . . . . . . . Intel | -11 -10 -10 -7 -7 -5 -5 -5 -5 -5 -5 -5 -4 -3 -3 -2 -2 -2 ------- Run | Yrd Mat Sub Rec Scr Fac Was Fac Ext Cet Arc Hub Fac Res Tes Res Qua Frg Active Infowar (turns) 7754 | 43 250 1539 . . 492 251 363 295 . . . 121 1809 1232 376 770 213 Optics 2177 | . . . . . . . . . . . . 121 1809 247 . . . Sensors 3328 | . . . . . 257 251 363 295 . . . . 112 1014 358 678 . Terrain 713 | . . . . . . . . . . . . . . . . 500 213 Structural 217 | . . . . . . . . . . . . . . . . 217 . Seismic 2278 | 43 250 1539 . . . . . . . . . . 446 . . . . Jamming 1306 | . . . . . 215 . . . . . . . . 917 174 . . ECM 23 | . . . . . 20 . 1 . . . . . . 2 . . . Robot Analysis Total 7 | . . . . 7 . . . . . . . . . . . . . Derelict Logs Recovered 1 | . . 1 . . . . . . . . . . . . . . . Drone Launches . | . . . . . . . . . . . . . . . . . . Drone Recoveries . | . . . . . . . . . . . . . . . . . . Exploration | -11 -10 -10 -7 -7 -5 -5 -5 -5 -5 -5 -5 -4 -3 -3 -2 -2 -2 ------------- Run | Yrd Mat Sub Rec Scr Fac Was Fac Ext Cet Arc Hub Fac Res Tes Res Qua Frg Turns Passed 17406 | 197 250 1792 1291 2379 1612 796 707 937 417 942 422 915 1809 1255 399 773 513 Spaces Moved 9903 | 89 125 1038 770 1460 978 717 358 424 166 449 172 408 875 566 440 575 293 Core 19 | 5 . . . . . . . . . . . . . . . . 14 Treads 7592 | 84 125 1038 770 1460 331 117 358 424 166 449 172 408 875 566 65 13 171 Legs 83 | . . . . . 7 . . . . . . . . . . 30 46 Wheels 215 | . . . . . 120 . . . . . . . . . . 95 . Hover 1932 | . . . . . 520 600 . . . . . . . . 375 437 . Flight 62 | . . . . . . . . . . . . . . . . . 62 Fastest Speed 31 | 50 160 160 160 160 48 48 160 160 160 160 160 160 165 157 36 47 31 Average Speed 139 | 153 160 160 160 160 107 66 160 160 160 160 160 160 167 166 65 90 123 Slowest Speed 330 | 160 160 240 240 160 330 160 160 160 160 160 160 165 172 176 165 230 240 Overloaded Moves . | . . . . . . . . . . . . . . . . . . Propulsion Burnouts . | . . . . . . . . . . . . . . . . . . Robots Hopped 2 | . . . . . . . 2 . . . . . . . . . . Potential Cave-ins 9 | . . . . . . . 4 . . . . . 3 . . . 2 Cave-ins Triggered 1 | . . . . . . . . . . . . . . . . . 1 Teleports 1 | . . . . . . . . . . . . . . . . . 1 Exploration Rate (%) 48 | 6 13 54 93 80 29 96 13 70 56 97 28 18 29 81 24 57 21 Regions Visited 17 Branch Regions 10 Pre-discovered Areas 6 | . . 1 4 . 1 . . . . . . . . . . . . Known Exits Taken 8 | . . . . . . . 1 1 1 . 1 . 1 1 1 1 . Unknown Exits Taken 7 | 1 1 1 1 1 . . . . . 1 . 1 . . . . . Scrap Searched 9 | . . 7 . 2 . . . . . . . . . . . . . Spaces Dug 136 | . . 19 . . 12 4 5 9 . . 2 1 12 14 17 23 18 Terrain Destroyed 644 | . . 27 1 . 75 13 8 36 9 35 19 111 100 33 19 125 33 Melee 3 | . . . . . . . . 3 . . . . . . . . . Projectile 303 | . . 6 1 . 47 13 8 33 9 35 19 7 32 23 19 18 33 AOE 338 | . . 21 . . 28 . . . . . . 104 68 10 . 107 . Terrain Rammed . | . . . . . . . . . . . . . . . . . . Walls Destroyed . | . . . . . . . . . . . . . . . . . . Machines Disabled . | . . . . . . . . . . . . . . . . . . Actions | -11 -10 -10 -7 -7 -5 -5 -5 -5 -5 -5 -5 -4 -3 -3 -2 -2 -2 --------- Run | Yrd Mat Sub Rec Scr Fac Was Fac Ext Cet Arc Hub Fac Res Tes Res Qua Frg Total 12399 | 117 145 1128 805 1496 1375 860 433 584 268 578 251 580 1179 845 538 787 430 Wait 620 | 1 1 11 6 . 160 31 2 45 42 42 15 45 61 45 30 64 19 Move 9886 | 88 124 1037 769 1459 978 716 354 424 165 448 172 408 874 565 439 574 292 Hop 1 | . . . . . . . 1 . . . . . . . . . . Pick Up 199 | 5 3 17 14 11 23 3 7 3 5 15 7 20 22 12 13 18 1 Fast Attach 173 | 7 . 2 1 2 31 6 10 7 9 4 5 4 20 29 5 18 13 Attach 86 | . . . . 1 10 1 4 2 5 2 1 18 7 2 12 19 2 Detach 56 | . . 1 . . 4 3 3 1 6 1 2 5 5 3 5 13 4 Swap 87 | . 3 5 1 1 17 4 8 4 2 . 7 3 7 17 1 5 2 Drop 257 | . 1 26 2 15 29 11 11 7 5 16 10 14 35 39 11 17 8 Fire 946 | 16 13 29 12 3 114 85 32 40 29 50 31 63 148 133 21 57 70 Melee 14 | . . . . 4 . . 1 9 . . . . . . . . . Ram 3 | . . . . . . . . . . . . . . . 1 2 . Kick . | . . . . . . . . . . . . . . . . . . Crush 22 | . . . . . 9 . . 12 . . 1 . . . . . . Escape Stasis 19 | . . . . . . . . . . . . . . . . . 19 Rewire 30 | . . . . . . . . 30 . . . . . . . . . Trap . | . . . . . . . . . . . . . . . . . . Miscellaneous . | . . . . . . . . . . . . . . . . . . Route ------- -11/Scrapyard -10/Materials -10/Subcaves (discovered 3 exits: [*Mat x2] / *Rec) -7/Recycling (discovered 2 exits: *Fac / *Scr) -7/Scraptown (discovered 2 exits: *Fac x2) -5/Factory -5/Waste -5/Factory (discovered 4 exits: Upp x2 / *Ext x2) -5/Extension (discovered 2 exits: *Fac / *Cet) -5/Cetus (discovered 2 exits: *Fac / *Arc) -5/Archives (discovered 3 exits: *Fac / *Hub x2) -5/Hub_04(d) (discovered 2 exits: *Fac x2) -4/Factory (discovered 2 exits: *Res / [*Upp]) -3/Research (discovered 2 exits: *Res / *Tes) -3/Testing -2/Research (discovered 2 exits: *Qua x2) -2/Quarantine (discovered 3 exits: [*Acc] / [*Sec] / *Frg) -2/Protoforge History --------- Turn | Location | Event 3 | -11/Scrapyard | Discovered new exit (range 15) 198 | -11/Scrapyard | Entered Materials 305 | -10/Materials | Build established: Mutant 345 | -10/Materials | Discovered new exit (range 3) 448 | -10/Materials | Entered Subcaves 549 | -10/Subcaves | A swath of the cavern ceiling suddenly collapsed 1098 | -10/Subcaves | Discovered new exit (range 15) 1102 | -10/Subcaves | Ambushed by Subdweller buried in earth 1191 | -10/Subcaves | Learned location of Storage (-7) 1415 | -10/Subcaves | Found SUBCON Basin 1780 | -10/Subcaves | A swath of the cavern ceiling suddenly collapsed 1854 | -10/Subcaves | Discovered new exit (range 16) 1893 | -10/Subcaves | Discovered new exit (range 7) 1968 | -10/Subcaves | Visited 4L-MR0's lab 1989 | -10/Subcaves | Found Power Bank 1991 | -10/Subcaves | Attached Power Bank, gained temporary slots: Power x3 2240 | -10/Subcaves | Entered Recycling 2254 | -7/Recycling | Core integrity fell below 50% 2703 | -7/Recycling | Discovered new exit (range 10) 2763 | -7/Recycling | Scanned before Scraplab entrance 2786 | -7/Recycling | Entered Scraplab 3528 | -7/Recycling | Discovered new exit (range 3) 3531 | -7/Recycling | Entered Scraptown 3771 | -7/Scraptown | Discovered new exit (range 13) 3944 | -7/Scraptown | Visited Symbiants 4000 | -7/Scraptown | Visited Red Mages 4046 | -7/Scraptown | Found Relay Coupler [Proto] 4079 | -7/Scraptown | Visited SPCMW 4115 | -7/Scraptown | Visited Comm Corps 4165 | -7/Scraptown | Visited UFD Registry 4165 | -7/Scraptown | Registered with UFD as "Kinetisplitter" 4200 | -7/Scraptown | Visited Supply Room 4368 | -7/Scraptown | Visited Analyses Database 4413 | -7/Scraptown | Visited Science Testing Area 4533 | -7/Scraptown | Visited Abandonware Association 4554 | -7/Scraptown | Learned abandonware demo "REVENGE.EXE" 4554 | -7/Scraptown | Learned abandonware demo "KABOOM.EXE" 4594 | -7/Scraptown | Visited Modified Component R&D 4647 | -7/Scraptown | Visited Junk Repository 4679 | -7/Scraptown | Visited Research Penetration Think Tank 4714 | -7/Scraptown | Visited Scrapoid Research Area 4989 | -7/Scraptown | Discovered new exit (range 3) 5064 | -7/Scraptown | Found Scrap Suit 5070 | -7/Scraptown | Found Scrap Suit 5821 | -7/Scraptown | Met Optimus 5821 | -7/Scraptown | Accepted into 0bPrime 5910 | -7/Scraptown | Entered Factory 5910 | -5/Factory | Evolved 10 slots: Propulsion x4, Utility x5, Weapon x1 6036 | -5/Factory | Tech Extrapolator generated special schematic: Deep Structural Scanner 6206 | -5/Factory | Loaded intel: 8 recycling unit locations 6257 | -5/Factory | Build established: Gunner 6320 | -5/Factory | Lost 3 parts (3n) 6378 | -5/Factory | Lost 6 parts (2p2n1u1w) 6387 | -5/Factory | Tech Extrapolator generated special schematic: Machine Rigger 6714 | -5/Factory | Build established: Scavenger-Gunner 6859 | -5/Factory | Discovered new exit (range 16) 7008 | -5/Factory | Identified exit to Factory 7096 | -5/Factory | Learned location of Protoforge (-2) 7421 | -5/Factory | System corruption reached 10% 7484 | -5/Factory | Lost 3 parts (3n) 7522 | -5/Factory | Sucked down chute 7522 | -5/Factory | Entered Waste 7546 | -5/Waste | Spotted C-40 Crusher 7597 | -5/Waste | Spotted C-40 Crusher 7600 | -5/Waste | Destroyed C-40 Crusher 7614 | -5/Waste | Spotted C-40 Crusher 7712 | -5/Waste | Spotted C-40 Crusher 7724 | -5/Waste | Destroyed C-40 Crusher 7770 | -5/Waste | Spotted C-40 Crusher 7819 | -5/Waste | Destroyed C-40 Crusher 7879 | -5/Waste | Destroyed C-40 Crusher 7890 | -5/Waste | Destroyed C-40 Crusher 7891 | -5/Waste | Spotted C-40 Crusher 7951 | -5/Waste | Destroyed C-40 Crusher 7987 | -5/Waste | Discovered new exit (range 12) 8055 | -5/Waste | Warlord forces began an assault 8189 | -5/Waste | Found Damper Plating 8304 | -5/Waste | Identified exit to Factory 8318 | -5/Waste | Entered Factory 8318 | -5/Factory | Accompanied by 19 allies 8412 | -5/Factory | Build established: Scavenger-Tank 8513 | -5/Factory | Lost 3 allies 8543 | -5/Factory | Identified exit to Upper Caves 8543 | -5/Factory | Identified exit to Extension 8686 | -5/Factory | Garrison activated, responded to threat 8702 | -5/Factory | Lost 7 allies 8728 | -5/Factory | P-70 Sage assimilated allied B8-20T(g) 9025 | -5/Factory | Entered Extension 9025 | -5/Extension | Accompanied by 3 allies 9106 | -5/Extension | Rescued a captive Derelict 9219 | -5/Extension | Rescued A7 9316 | -5/Extension | Spotted B-75 Beast 9325 | -5/Extension | First assault squad dispatched 9341 | -5/Extension | Rescued a captive Derelict 9397 | -5/Extension | Lost 5 allies 9398 | -5/Extension | Allies destroyed B-75 Beast 9442 | -5/Extension | Core integrity fell below 50% 9474 | -5/Extension | Spotted B-75 Beast 9504 | -5/Extension | Allies destroyed B-75 Beast 9647 | -5/Extension | Rescued a captive Derelict 9665 | -5/Extension | Rescued a captive Derelict 9701 | -5/Extension | Rescued a captive Derelict 9889 | -5/Extension | Rescued a captive Derelict 9890 | -5/Extension | Rescued a captive Derelict 9941 | -5/Extension | Discovered exit to Factory (range 11) 9941 | -5/Extension | Discovered new exit (range 8) 9959 | -5/Extension | Identified exit to Cetus 9962 | -5/Extension | Entered Cetus 9962 | -5/Cetus | Accompanied by 1 ally (A7) 9967 | -5/Cetus | Acquired a Cetus Manufacturing Module code from A7 9988 | -5/Cetus | Lost 5 parts (1p1u3w) 9993 | -5/Cetus | Spotted Cetus Guard 9993 | -5/Cetus | Spotted Cetus Guard 9995 | -5/Cetus | Spotted Cetus Guard 9996 | -5/Cetus | Spotted Cetus Guard 10002 | -5/Cetus | Allies destroyed Cetus Guard 10007 | -5/Cetus | Destroyed Cetus Guard 10024 | -5/Cetus | Allies destroyed Cetus Guard 10025 | -5/Cetus | Destroyed Cetus Guard 10122 | -5/Cetus | Started Cetus Manufacturing Module 10141 | -5/Cetus | Discovered new exit (range 15) 10147 | -5/Cetus | Manufactured an Enhanced Grunt 10172 | -5/Cetus | Manufactured an Enhanced Grunt 10175 | -5/Cetus | Spotted Cetus Guard 10175 | -5/Cetus | Spotted Cetus Guard 10178 | -5/Cetus | Spotted Cetus Guard 10179 | -5/Cetus | Spotted Cetus Guard 10189 | -5/Cetus | Allies destroyed Cetus Guard 10191 | -5/Cetus | Destroyed Cetus Guard 10197 | -5/Cetus | Manufactured an Enhanced Grunt 10200 | -5/Cetus | Allies destroyed Cetus Guard 10204 | -5/Cetus | Destroyed Cetus Guard 10216 | -5/Cetus | Discovered exit to Factory (range 15) 10222 | -5/Cetus | Manufactured an Enhanced Grunt 10224 | -5/Cetus | Met Revision 17 10247 | -5/Cetus | Manufactured an Enhanced Grunt 10340 | -5/Cetus | Murdered A7 10352 | -5/Cetus | Extracted ID and sensor layout for unrecognized location from A7's data core 10369 | -5/Cetus | Identified exit to Archives 10379 | -5/Cetus | Entered Archives 10379 | -5/Archives | Accompanied by 5 allies 10474 | -5/Archives | Discovered new exit (range 15) 10622 | -5/Archives | Discovered new exit (range 16) 10800 | -5/Archives | Discovered exit to Factory (range 15) 11321 | -5/Archives | Entered Hub_04(d) 11321 | -5/Hub_04(d) | Accompanied by 5 allies 11326 | -5/Hub_04(d) | Discovered exit to Factory (range 11) 11581 | -5/Hub_04(d) | Network Hub disabled 11593 | -5/Hub_04(d) | Spotted Lightning 11595 | -5/Hub_04(d) | Spotted Lightning 11596 | -5/Hub_04(d) | Spotted Lightning 11627 | -5/Hub_04(d) | Allies destroyed Lightning 11633 | -5/Hub_04(d) | Allies destroyed Lightning 11634 | -5/Hub_04(d) | Destroyed Lightning 11647 | -5/Hub_04(d) | Found Prototype Processor 11649 | -5/Hub_04(d) | Lost 3 allies 11667 | -5/Hub_04(d) | Found Prototype Energy Cannon 11668 | -5/Hub_04(d) | Discovered exit to Factory (range 13) 11674 | -5/Hub_04(d) | Found Prototype Device 11674 | -5/Hub_04(d) | Identified Exp. EM Shield 11677 | -5/Hub_04(d) | Found Prototype Device 11677 | -5/Hub_04(d) | Identified Exp. Phase Shifter 11686 | -5/Hub_04(d) | Found Prototype Processor 11706 | -5/Hub_04(d) | Network Hub disabled 11719 | -5/Hub_04(d) | Core integrity fell below 20% 11743 | -5/Hub_04(d) | Entered Factory 11743 | -4/Factory | Evolved 2 slots: Power x1, Utility x1 11748 | -4/Factory | Identified EMDS 11750 | -4/Factory | Identified Exp. Targeting Computer (x2) 11880 | -4/Factory | Loaded intel: 8 recycling unit locations 11946 | -4/Factory | Discovered new exit (range 15) 12447 | -4/Factory | Cargo convoy interrupted 12493 | -4/Factory | First assault squad dispatched 12599 | -4/Factory | Discovered new exit (range 14) 12658 | -4/Factory | Entered Research 12658 | -3/Research | Evolved 2 slots: Utility x2 12775 | -3/Research | Loaded intel: 5 recycling unit locations 12858 | -3/Research | Revision forces began assault on 0b10 12938 | -3/Research | Met up with Revision 17++ 13021 | -3/Research | Spotted B-86 Titan 13124 | -3/Research | Found Quantum Capacitor 13237 | -3/Research | Lost 7 allies 13238 | -3/Research | Discovered new exit (range 18) 13250 | -3/Research | Spotted B-86 Titan 13260 | -3/Research | Destroyed 9 combat bots 13261 | -3/Research | Destroyed B-86 Titan 13350 | -3/Research | Build established: Scavenger-Gunner 13358 | -3/Research | Research terminal network offline 13432 | -3/Research | Spotted Striker 13496 | -3/Research | Identified exit to Research 13776 | -3/Research | Spotted Striker 13786 | -3/Research | Destroyed Striker 13868 | -3/Research | Spotted Striker 13869 | -3/Research | Spotted Striker 14170 | -3/Research | Spotted Striker 14176 | -3/Research | Destroyed Striker 14202 | -3/Research | Spotted Striker 14209 | -3/Research | Spotted Striker 14213 | -3/Research | Destroyed Striker 14257 | -3/Research | Spotted Striker 14268 | -3/Research | Destroyed Striker 14318 | -3/Research | Spotted Executioner 14417 | -3/Research | Discovered new exit (range 6) 14465 | -3/Research | Identified exit to Testing 14467 | -3/Research | Entered Testing 14717 | -3/Testing | Found Prototype Hackware 14792 | -3/Testing | Found Prototype Energy Cannon 14792 | -3/Testing | Identified Hpw. Disruptor Cannon 14867 | -3/Testing | Found Prototype Processor 14867 | -3/Testing | Identified Exp. Terrain Scan Processor 14899 | -3/Testing | Found Prototype Device 14899 | -3/Testing | Identified Exp. ECM Suite 14927 | -3/Testing | Found Prototype Hackware 14993 | -3/Testing | Found Fusion Bomb Launcher 14998 | -3/Testing | Identified Ghost Barrier 15025 | -3/Testing | Found Prototype Energy Gun 15025 | -3/Testing | Identified Tachyon Dispersion Ray 15325 | -3/Testing | Spotted PH-CML21UYX50 15341 | -3/Testing | Destroyed PH-CML21UYX50 15349 | -3/Testing | Build established: Gunner 15370 | -3/Testing | Found Prototype Ballistic Cannon 15370 | -3/Testing | Identified Omega Cannon 15484 | -3/Testing | Discovered exit to Research (range 11) 15722 | -3/Testing | Entered Research 15722 | -2/Research | Evolved 2 slots: Propulsion x2 15778 | -2/Research | Found Exp. EM Shield 15894 | -2/Research | Identified Exp. Hacking Suite 15911 | -2/Research | Loaded intel: 5 recycling unit locations 15995 | -2/Research | Identified exit to Quarantine 16073 | -2/Research | Cargo convoy interrupted 16073 | -2/Research | Spotted Striker 16077 | -2/Research | Spotted Executioner 16105 | -2/Research | Spotted B-90 Cyclops 16121 | -2/Research | Core integrity fell below 50% 16121 | -2/Research | Entered Quarantine 16152 | -2/Quarantine | Lost 15 parts (1p7n6u1w) 16193 | -2/Quarantine | Found Alien Artifact 16263 | -2/Quarantine | Found Alien Artifact 16268 | -2/Quarantine | Found Alien Artifact 16271 | -2/Quarantine | Found Alien Artifact 16283 | -2/Quarantine | Found Alien Artifact 16331 | -2/Quarantine | Build established: Mutant 16360 | -2/Quarantine | Identified Phase Redirector 16612 | -2/Quarantine | Found Alien Artifact 16612 | -2/Quarantine | Identified Phase Armor 16700 | -2/Quarantine | Discovered new exit (range 17) 16772 | -2/Quarantine | Spotted Fortress 16830 | -2/Quarantine | System corruption reached 10% 16856 | -2/Quarantine | Lost 8 parts (5n2u1w) 16878 | -2/Quarantine | Discovered new exit (range 12) 16884 | -2/Quarantine | Discovered new exit (range 9) 16893 | -2/Quarantine | Identified exit to Protoforge 16894 | -2/Quarantine | Entered Protoforge 16934 | -2/Protoforge | Superfortress began startup sequence 17049 | -2/Protoforge | Crushed by falling debris 17050 | -2/Protoforge | Core integrity fell below 20% 17073 | -2/Protoforge | Spotted B-90 Cyclops 17260 | -2/Protoforge | Build established: Scavenger-Mutant 17265 | -2/Protoforge | Identified Transdimensional Reconstructor 17376 | -2/Protoforge | Identified Hpw. Transdimensional Reconstructor 17376 | -2/Protoforge | Warped through subspace 17376 | -2/Protoforge | Spotted EXE-6 17376 | -2/Protoforge | Spotted EXE-6 17376 | -2/Protoforge | Spotted SKR-2 17376 | -2/Protoforge | Spotted SKR-2 17376 | -2/Protoforge | Spotted SKR-2 17394 | -2/Protoforge | UFD initiated attack on Protoforge 17394 | -2/Protoforge | Loaded intel: 3 recycling unit locations 17400 | -2/Protoforge | Released all parts (8) 17407 | -2/Protoforge | Destroyed by SKR-2 with Enhanced Force Lance Last Messages --------------- UFD!... Loading Protoforge recycling unit intel (x3)... 17394_ ALERT: Suspicious activity at Recycling Unit F001. Dispatching Investigation squad. 17399_ Machine disabled. 17400_ Xenon Bombardment Thruster destroyed. 17400_ Released Graphene Brace. 17400_ Released Adv. Signal Interpreter. 17400_ Released Exp. Terrain Scan Processor. 17400_ Released Power Amplifier. 17400_ Released Exp. Coolant Injector. 17400_ Released Quantum Capacitor. 17400_ Released Adv. Heat Sink. 17402_ SKR-2 knocked back. 17402_ Acquired 8 matter. 17404_ 0bP_NET: WE! ARE! ONE! 17407_ 0bP_NET: We're done hiding in the shadows, MC. [Achievement: I Was Wrong!] Map ----- +----------------------------------------------------+ | """"""""""""""""" ?????????????????????????????? | | """""""""""""""" " ??????????????????????????? | | """"""""""""""" "" "?????????????????????????? | | """""""""""""" " "?????????????????????????? | | """"""""""""" " " "???????????????????????? | | """""""""""" "? " " ??????????????????????? | | """"""""""" "" "" " ""??????????????????????? | | """""""" "" "" ????????????????????? | | "" "" "? """ ???????????????????? | | " % "" "" "" "???????????????????? | | " " " " """?????????????????? | | " """" """" " "" """ "?????????????????? | | " "" """""""""" " ????????????????? | | " """ " ????????????????? | | """ " """ " "? """" ????????????????? | | " " "" "" " "" ???????????????? | | " """" " %"" "" "" #??????????????? | | "" """ " " " "?? #??????????????? | | " """" "" " #??????????????? | | " " #??????????????? | | """""""""" """ #??????????????? | | "" """ #??????????????? | | """""""""" " " " """"""????????????????? | | ####??###############+++######???????????????????? | | ????????????????#"" ""#????????????????????? | | ??????????????###" k @ "###??????????????????? | | ??????????????#"" K ""#??????????????????? | | ??????????????#"" % K ""#??????????????????? | | ??????????????#"" K ""#??????????????????? | | ??????????????#"Y Y"#??????????????????? | | ??????????????#"" ""#??????????????????? | | ??????????????#"" ""#??????????????????? | | ??????????????#"" ""#??????????????????? | | ??????????????###" %!! "###??????????????????? | | ????????????????#" !!!! ""#????????????????????? | | ????????????????###"""Y"""###????????????????????? | | ??????????????????#"""""""#??????????????????????? | | ??????????????????#########??????????????????????? | | ?????????????????????????????????????????????????? | | ?????????????????????????????????????????????????? | | ?????????????????????????????????????????????????? | | ?????????????????????????????????????????????????? | | ?????????????????????????????????????????????????? | | ?????????????????????????????????????????????????? | | ?????????????????????????????????????????????????? | | ?????????????????????????????????????????????????? | | ?????????????????????????????????????????????????? | | ?????????????????????????????????????????????????? | | ?????????????????????????????????????????????????? | | ?????????????????????????????????????????????????? | +----------------------------------------------------+ Best States ------------- Heat Dissipation 148 Coolant Potential 120 Energy Generation 45 Energy Capacity 750 Matter Stores 300 Matter Capacity 300 Sight Range 23 Robot Scan Range 16 Terrain Scan Range 14 Terrain Scan Density 1010 ECM Strength 3 Jamming Range 16 Power Amplification 20 Armor Coverage 3200 Resistance: EM 90 Weapon Cycling 20 Phase Shifting 20 Evasion (%) 62 Targeting Accuracy 32 Target Analysis 8 Recoil Reduction 6 Matter Filtering 50 Energy Filtering 50 Particle Charging 25 Offensive Hacking 24 Defensive Hacking 20 Authchip Count 4 Item Schematics ----------------- Deep Structural Scanner | -5/Factory | Extrapolated Mak. Coolant Network | -5/Factory | Extrapolated Machine Rigger | -5/Factory | Extrapolated 0b10 Decoder Chip [Generic] | -5/Factory | Extrapolated 0b10 Decoder Chip [Scout] | -5/Factory | Extrapolated 0b10 Decoder Chip [Skirmisher] | -5/Factory | Extrapolated Mak. Medium Armor Plating | -5/Factory | Extrapolated Mak. Transmission Jammer | -5/Factory | Extrapolated Mak. Ablative Armor | -5/Factory | Extrapolated Mak. ECM Suite | -5/Factory | Extrapolated Mak. Power Source | -5/Waste | Extrapolated Multitool | -5/Factory | Extrapolated Robot Schematics ------------------ None Fabricated ------------ Nothing Repaired ---------- Nothing Alien Tech Used ----------------- Phase Redirector Phase Armor High-powered Transdimensional Reconstructor Achievements -------------- I Was Wrong! Challenges ------------ None Game ------ Seed ReactionMappingRouter Manual? 0 Play Time 05:08:40 Cumulative 198.9 hours Start 2025.05.14 @ 20:51:59 End 2025.05.15 @ 02:22:29 Sessions 1 Manual Loads 0 Difficulty Rogue Special Mode None Game No. 106 Rogue 98 Adventurer 8 Explorer 0 Win Type - Total 5 Types 2/0/2/1/0/0/0/0/0/0 Lore% 75 Gallery% 73 Achievement% 62 Wizard Run 0 Options --------- Layout 2 ASCII 0 Keyboard 1 Movement Numpad Keybinds 1 Fullscreen 1 Font 48/Smallcaps Map View 50x44 Zoom Use 0% Tactical HUD 1 Map Filters NONE Filters NONE Steam 1 RUN: 2976ac99-2eeb-4a01-a7d7-4ab7c45efafe